{"text_format":"1","workbook":"xlsx","n_sheets":14,"sheets":["Cover","Info","Results","E01","E02","E03","E04","E05","E06","E07","E08","E09","E10","About"],"not_rendered":{"charts":11,"images":40,"macros":1,"external_links":1,"defined_names":15,"comments":0,"pivot_tables":0},"unopened":[],"bounds":{"document_bytes":16777216,"sheet_cells":100000,"rows_first":2000,"rows_last":500,"rows_between":2000,"halvings":0,"cell_chars":16384,"cell_head_chars":4096},"cells_cut":0,"cells_raw":0,"read":"whole","date_system":"1900"}

{"sheet":"Cover","index":0,"n_rows":0,"n_cols":0,"rows_kept":0,"cut":false,"hidden":false,"merged":[]}

{"sheet":"Info","index":1,"n_rows":39,"n_cols":4,"rows_kept":39,"cut":false,"hidden":false,"merged":[[38,1,38,3],[39,1,39,3],[2,1,2,2],[3,1,3,2],[4,1,4,2],[5,1,5,2],[6,1,6,2],[37,1,37,3],[31,1,31,2],[32,1,32,2],[33,1,33,2],[34,1,34,2],[35,1,35,2]]}
[]
[]
[null,"Bu Değerlendirme",null,"Yanıt"]
[null,"Kentin adı"]
[null,"Kent türü (belediye, büyükşehir vb.)"]
[null,"Ülke"]
[null,"Değerlendirme tarihi"]
[]
[null,"Kent Profili (Gerekli)","Yanıt","Kaynak Tarihi"]
[null,"En üst düzey yetkilinin unvanı (Belediye Başkanı vb.)"]
[null,"Kentin toplam nüfusu:   "]
[null,"Kilometre kare cinsinden kentin alanı:"]
[null,"Nüfus yoğunluğu (kilometre kare başına): "]
[null,"Genç nüfus oranı (15-24 yaş) (%):"]
[null,"Yaşlı nüfus oranı (65 yaş üstü) (%):"]
[null,"Toplumsal cinsiyet (kadının aile reisi olduğu haneler):"]
[null,"Okuryazarlık oranı (okuryazar nüfus %si):"]
[null,"Yoksulluk oranı (yoksulluk içinde olmayan nüfus %si):"]
[null,"Ortalama hane geliri (USD):"]
[null,"Vatandaş olmayan kent sakinlerinin oranı (%):"]
[null,"Bilinen en olası afet riski: "]
[null,"Bilinen en ciddi afet: "]
[]
[null,"Kent Profili (İsteğe Bağlı)","Yanıt","Kaynak Tarihi"]
[null,"Toplam hane sayısı: "]
[null,"Hane başına kişi sayısı:"]
[null,"Geçim gideri (USD):"]
[null,"Ülkede kişi başına düşen GSYİH (USD):"]
[null,"Gini katsayısı:"]
[null,"Kentte kişi başına düşen gayri safi hasıla (USD):"]
[]
[null,"Yerel Yönetim Afet Riskini Azaltma ve Dirençlilik Ekibi",null,"Yanıt"]
[null,"Karne değerlendirmesinin tamamlanmasında rehberlikten / koordinasyondan sorumlu kişinin adı:"]
[null,"Teşkilat: "]
[null,"İletişim bilgileri:"]
[null,"Sonuçları paylaşma veya UNDRR ve ortakları tarafından örnek / vaka çalışması olarak kullanılma konusundaki isteklilik:"]
[]
[null,"Paydaş Bilgileri"]
[null,"Bu değerlendirmeye destek veren tüm paydaşları lütfen aşağıya listeleyin."]

{"sheet":"Results","index":2,"n_rows":221,"n_cols":13,"rows_kept":221,"cut":false,"hidden":false,"merged":[[158,1,158,3],[134,1,134,6],[136,2,136,5],[137,2,137,5],[138,2,138,5],[139,2,139,5],[140,2,140,5],[141,2,141,5],[142,2,142,5],[146,1,146,6],[148,2,148,5],[149,2,149,5],[111,2,111,5],[98,2,98,5],[94,1,94,6],[96,2,96,5],[97,2,97,5],[106,1,106,6],[108,2,108,5],[109,2,109,5],[110,2,110,5],[99,2,99,5],[100,2,100,5],[101,2,101,5],[89,2,89,5],[85,1,85,6],[74,2,74,5],[75,2,75,5],[76,2,76,5],[77,2,77,5],[87,2,87,5],[88,2,88,5],[51,2,51,5],[61,2,61,5],[62,2,62,5],[63,2,63,5],[64,2,64,5],[131,2,131,5],[35,2,35,5],[36,2,36,5],[37,2,37,5],[123,2,123,5],[124,2,124,5],[125,2,125,5],[47,2,47,5],[48,2,48,5],[49,2,49,5],[50,2,50,5],[126,2,126,5],[127,2,127,5],[128,2,128,5],[129,2,129,5],[130,2,130,5]]}
[]
[]
[]
[]
[]
[]
[]
[]
[]
[]
[]
[]
[]
[]
[]
[]
[]
[]
[]
[]
[]
[]
[]
[]
[]
[]
[]
[]
[]
[]
[]
[]
[]
[null,"Esas 01: Dirençlilik için Örgütlenme"]
[]
[null,{"$f":"C175","v":"P1.1"},{"$f":"E175","v":"Kentin master planında (veya ilgili strateji/plan) Sendai Çerçevesi benimsenmiş mi?"},null,null,null,{"$f":"F175","v":0}]
[null,{"$f":"C176","v":"P1.2"},{"$f":"E176","v":"Afet riskini azaltma konusunun ele alınması için uygun yetki ve kaynakların olduğu, çok kuruluşlu/sektörel bir mekanizma var mı?"},null,null,null,{"$f":"F176","v":0}]
[null,{"$f":"C177","v":"P1.3"},{"$f":"E177","v":"Dirençlilik, diğer önemli kent işlevleri / portföyleri ile gerektiği gibi entegre mi?"},null,null,null,{"$f":"F177","v":0}]
[]
[]
[]
[]
[]
[]
[]
[null,"Esas 02: Mevcut ve Geleceğe Yönelik Risk Senaryolarının Tespit Edilmesi, Anlaşılması ve Kullanılması"]
[]
[null,{"$f":"C178","v":"P2.1"},{"$f":"E178","v":"Kentin karşı karşıya olduğu önemli tehlikeler ve bunların meydana gelme olasılıkları ile ilgili bilgisi var mı?"},null,null,null,{"$f":"F178","v":0}]
[null,{"$f":"C179","v":"P2.2"},{"$f":"E179","v":"Kent ile çeşitli kamu hizmeti sağlayıcıları ve enerji, su, yol ve tren gibi altyapıların yönetiminde görevli olan diğer bölgesel ve ulusal kurumlar arasında, sistem ve kent ölçeğinde riskler üzerindeki stres noktaları konusunda ortak bir risk anlayışı var mı? "},null,null,null,{"$f":"F179","v":0}]
[null,{"$f":"C180","v":"P2.3"},{"$f":"E180","v":"Her bir tehlike veya tehlike grupları nedeniyle kent genelinde maruz kalma ve kırılganlık durumunu ortaya koyan, kabul edilmiş senaryolar var mı (yukarıya bakın)?"},null,null,null,{"$f":"F180","v":0}]
[null,{"$f":"C181","v":"P2.4"},{"$f":"E181","v":"Farklı senaryolarda farklı kent ve altyapı sistemleri arasındaki olası basamaklı aksaklıklara dair toplu bir anlayış var mı?"},null,null,null,{"$f":"F181","v":0}]
[null,{"$f":"C182","v":"P2.5"},{"$f":"E182","v":"Açık tehlike haritaları ve risk verileri mevcut mu? Bunlar düzenli olarak güncelleniyor mu?"},null,null,null,{"$f":"F182","v":0}]
[]
[]
[]
[]
[]
[]
[]
[null,"Esas 03: Dirençlilik için Mali Kapasitenin Güçlendirilmesi"]
[]
[null,{"$f":"C183","v":"P3.1"},{"$f":"E183","v":"Kent / önde gelen kurumlar, tüm fon kaynaklarının ve \"dirençlilik payları\"nın bağlantılı olduğunu anlıyor ve harici fonları çekebilmek için kullanılabilecek tüm yolları bilerek büyük dirençlilik yatırımları için aktif olarak fon takibi yapıyor mu?"},null,null,null,{"$f":"F183","v":0}]
[null,{"$f":"C184","v":"P3.2"},{"$f":"E184","v":"Kentin yerel afet riskini azaltma amaçlı, mevcut \"koruma altında\" bütçesi, gerekli kaynakları ve ihtiyat fonu düzenlemeleri (azaltma, önleme, müdahale ve toparlanma) var mı?"},null,null,null,{"$f":"F184","v":0}]
[null,{"$f":"C185","v":"P3.3"},{"$f":"E185","v":"Kentte tüm sektörlerde (işletmeler ve topluluk) hangi düzeyde sigorta teminatı var?"},null,null,null,{"$f":"F185","v":0}]
[null,{"$f":"C186","v":"P3.4"},{"$f":"E186","v":"Dirençlilik oluşturmayı desteklemek üzere farklı işletme sektörleri ve kesimleri için hangi teşvikler mevcut?"},null,null,null,{"$f":"F186","v":0}]
[]
[]
[]
[]
[]
[]
[]
[null,"Esas 04: Yüksek Dirençli Kentsel Gelişmenin Hedeflenmesi"]
[]
[null,{"$f":"C187","v":"P4.1"},{"$f":"E187","v":"Örneğin kilit risk senaryolarına göre ekonomik faaliyet, tarımsal üretim ve nüfus merkezleri dikkate alındığında kent uygun şekilde bölgelere ayrılmış mı?"},null,null,null,{"$f":"F187","v":0}]
[null,{"$f":"C188","v":"P4.2"},{"$f":"E188","v":"Dirençliliği artırmak için yeni kentsel gelişmenin tasarlanması ve oluşturulmasına yönelik yaklaşımlar destekleniyor mu?"},null,null,null,{"$f":"F188","v":0}]
[null,{"$f":"C189","v":"P4.3"},{"$f":"E189","v":"Yapı kural veya standartları mevcut mu? Bunlar kentin bilinen tehlike ve risklerini ele alıyor mu? Bu standartlar düzenli olarak güncelleniyor mu?"},null,null,null,{"$f":"F189","v":0}]
[null,{"$f":"C190","v":"P4.4"},{"$f":"E190","v":"Bölgelere ayırma kuralları, yapı kural ve standartları yaygın olarak uygulanıyor, gerektiği gibi hayata geçirilip doğrulanıyor mu?"},null,null,null,{"$f":"F190","v":0}]
[]
[]
[]
[]
[]
[]
[]
[null,"Esas 05: Doğal Ekosistemlerin Sağladığı Koruyucu İşlevlerin Geliştirilmesi için Doğal Tamponların Korunması "]
[]
[null,{"$f":"C191","v":"P5.1"},{"$f":"E191","v":"Doğal varlıkların farkında olmanın ötesinde, kent bu doğal sermayenin kent için sağladığı işlevleri (veya hizmetleri) anlıyor mu?"},null,null,null,{"$f":"F191","v":0}]
[null,{"$f":"C192","v":"P5.2"},{"$f":"E192","v":"Yeşil ve mavi altyapı büyük kentsel gelişim ve altyapı projelerinde politika yoluyla teşvik ediliyor mu?"},null,null,null,{"$f":"F192","v":0}]
[null,{"$f":"C193","v":"P5.3"},{"$f":"E193","v":"Kent, kendi idari sınırlarının dışındaki doğal sermayenin kente sağladığı ekosistem hizmetlerinin farkında mı? Bu varlıkların korunmasını ve yönetimini desteklemek için komşu yönetimlerle yapılmış anlaşmalar var mı?"},null,null,null,{"$f":"F193","v":0}]
[]
[]
[]
[]
[null,"Esas 06: Dirençlilik için Kurumsal Kapasitenin Güçlendirilmesi"]
[]
[null,{"$f":"C194","v":"P6.1"},{"$f":"E194","v":"Kent, riskleri azaltmak ve tanımlanmış afet senaryolarına yanıt vermek için ihtiyaç duyduğuna inanılan tüm beceri ve deneyimlere rahat bir şekilde erişebiliyor mu?"},null,null,null,{"$f":"F194","v":0}]
[null,"P6.2","Tehlike, risk ve afet bilgilerinin (anlaşılıp kullanılabilecek özellikte) halkın geneline düzgün bir şekilde dağıtılmasını sağlamak üzere yapılandırılmış mesaj yollarının ve kanalların olduğu koordineli bir halkla ilişkiler ve eğitim kampanyası var mı?",null,null,null,0]
[null,"P6.3","Kentin dirençlilik durumu ile ilgili verilerin, kentin dirençliliğiyle ilgilenen diğer teşkilatlarla paylaşılma düzeyi.",null,null,null,0]
[null,"P6.4","Risk ve dirençlilik konularının ele alındığı ve yönetim, işletmeler, STK'ler ve toplum dahil kentin tüm kesimlerine verilen eğitimler var mı?",null,null,null,0]
[null,"P6.5","Eğitim materyalleri, kentte yaygın olarak kullanılan dillerin birçoğunda hazırlanmış mı?",null,null,null,0]
[null,"P6.6","Kent, proaktif olarak, benzer zorluklarla karşılaşan diğer kentlerle bilgi alışverişi yapmaya ve onlardan bilgi almaya çalışıyor mu?",null,null,null,0]
[]
[]
[]
[]
[null,"Esas 07:  Dirençlilik için Toplumsal Kapasitenin Anlaşılması ve Güçlendirilmesi"]
[]
[null,{"$f":"C200","v":"P7.1"},{"$f":"E200","v":"Kentteki her mahallede risk azaltma ve olay sonrası müdahale sürecine \"taban\" ve toplumsal örgütler katılıyor mu?"},null,null,null,{"$f":"F200","v":0}]
[null,{"$f":"C201","v":"P7.2"},{"$f":"E201","v":"Kentteki en kırılgan nüfus için yürütülen düzenli eğitim programları var mı?"},null,null,null,{"$f":"F201","v":0}]
[null,{"$f":"C202","v":"P7.3"},{"$f":"E202","v":"İşletmelerin yüzde kaçında son 18 ayda gözden geçirilmiş olan, belgeli bir iş süreklilik planı var?"},null,null,null,{"$f":"F202","v":0}]
[null,{"$f":"C203","v":"P7.4"},{"$f":"E203","v":"Kent, DRR ile ilişkili olarak kent sakini katılımı ve iletişimleri konusunda ne kadar etkili?"},null,null,null,{"$f":"F203","v":0}]
[]
[]
[]
[]
[]
[]
[]
[]
[]
[null,"Esas 08: Altyapı Dirençliliğinin Artırılması"]
[]
[null,{"$f":"C204","v":"P8.1"},{"$f":"E204","v":"Kritik altyapı dirençliliği, kentin bir önceliği mi? Kentin kritik altyapı planı ve stratejisi var ve bunu uyguluyor mu?"},null,null,null,{"$f":"F204","v":0}]
[null,{"$f":"C205","v":"P8.2"},{"$f":"E205","v":"Mevcut koruyucu altyapı, risk bilgilerine göre iyi tasarlanmış ve iyi inşa edilmiş durumda mı?"},null,null,null,{"$f":"F205","v":0}]
[null,"P8.3",{"$f":"E206","v":"Kabul edilen afet senaryolarında bu iki temel hizmetin kentin önemli bölümünde büyük bir hizmet kaybı yaşaması bekleniyor mu?"},null,null,null,0]
[null,"P8.4",{"$f":"E207","v":"En kötü durum senaryosunda kentin önemli bölümünde büyük bir hizmet kaybı yaşanması bekleniyor mu? Aksaklık halinde enerji altyapı koridorlarının güvenliği korunur mu (yani kaçak riski, elektrik çarpma tehlikesi vb. olmadan)?"},null,null,null,0]
[null,"P8.5","En kötü durum senaryosunda kentin önemli bölümünde büyük bir hizmet kaybı yaşanması bekleniyor mu? Aksaklık halinde ulaşım altyapı koridorlarının güvenliği ve geçilebilirlik durumu korunur mu (yani sel riski, darbe vb. olmadan)?",null,null,null,0]
[null,"P8.6","En kötü durum senaryosunda kentin önemli bölümünde büyük bir hizmet kaybı yaşanması bekleniyor mu?",null,null,null,0]
[null,"P8.7","\"En kötü durum\" senaryosunda beklenen ciddi yaralanmalarla ilgilenmek için yeterli akut sağlık hizmeti olanağı var mı?",null,null,null,0]
[null,"P8.8","\"En olası\" ve \"en ciddi\" senaryolarda hasar görme riskinde olan eğitim yapılarının yüzdesi",null,null,null,0]
[null,{"$f":"C212","v":"P8.9"},"Gereken askeri veya sivil destek kuvvetleri ile yeterli ilk müdahale ekibi teçhizatı var mı?",null,null,null,0]
[]
[]
[null,"Esas 09: Etkili Afet Müdahalesinin Sağlanması"]
[]
[null,{"$f":"C213","v":"P9.1"},{"$f":"E213","v":"Kentin erken uyarı ve tahminlere göre hareket etmek için bir plan veya standart faaliyet usulü var mı? Erken uyarı sistemi nüfusun yüzde kaçına ulaşabiliyor?"},null,null,null,{"$f":"F213","v":0}]
[null,{"$f":"C214","v":"P9.2"},"Kentin yerel acil durumlara karşı azaltma, hazırlıklı olma ve müdahale eylemlerini özetleyen bir afet yönetim / hazırlıklı olma /acil durum müdahalesi planı var mı?",null,null,null,0]
[null,"P9.3","Sorumlu afet yönetimi yetkilisinin, kapasite artış senaryosunda ilk müdahale ekibi görevlerini desteklemek için yeterli personel kapasitesi var mı?",null,null,null,0]
[null,"P9.4","Teçhizat ve malzeme ihtiyaçları ile teçhizatın kullanılabilirlik durumu net bir şekilde tanımlanmış mı?",null,null,null,0]
[null,"P9.5","Kent, olay sonrasında nüfusuna yemek ve barınak sağlayabilir mi?",null,null,null,0]
[null,"P9.6","Tüm kurumların katıldığı, özellikle \"en olası\" ve \"en ciddi\" senaryolar ile başa çıkmak için tasarlanmış standart faaliyet usullerinin otomatik hale getirildiği bir acil durum merkezi var mı?",null,null,null,0]
[null,"P9.7","Alıştırma ve tatbikatlara hem halk hem de uzmanlar dahil ediliyor mu?",null,null,null,0]
[]
[]
[]
[null,"Esas 10: Daha Hızlı Toparlanma ve Daha İyi Yeniden Yapılanma"]
[]
[null,{"$f":"C220","v":"P10.1"},{"$f":"E220","v":"Olay sonrası toparlanma ve yeniden yapılanma için, ekonomide yeniden başlama, toplumsal boyutlar vb.nin de yer aldığı, yerleşik bir strateji veya süreç var mı?"},null,null,null,{"$f":"F220","v":0}]
[null,{"$f":"C221","v":"P10.2"},{"$f":"E221","v":"Olay sonrası değerlendirme süreçlerinde aksaklık analizleri ve alınan dersleri içselleştirip yeniden yapılanma projelerinin tasarımına ve yürütülmesine dahil etme kabiliyeti var mı?"},null,null,null,{"$f":"F221","v":0}]
[]
[]
[]
[]
[]
[]
[]
[]
[null,{"$f":"TODAY()","v":"2020-03-03"}]
[]
[]
[null,null,"Label","Name",null,"Essential","TotalScore","MaxScore","Label"]
[null,null,"S1","1.   Afet Rezilyansı için Örgütlenme",null,"E1",{"$f":"SUMIFS($F$175:$F$1154,$B$175:$B$1154,F163)","v":0},{"$f":"COUNTIFS($B$175:$B$221,F163)*3","v":9},"01",null,{"$f":"SUM(G163:G172)","v":0},{"$f":"K163/K164","v":0},{"$f":"CONCATENATE(\"The overall score for this assessment is \",SUM(G163:G172),\" / \",SUM(H163:H172))","v":"The overall score for this assessment is 0 / 141"}]
[null,null,"S2","2.   Mevcut ve Geleceğe Yönelik Risk Senaryolarının Tespit Edilmesi, Anlaşılması ve Kullanılması",null,"E2",0,15,"02",null,{"$f":"SUM(H163:H172)","v":141},{"$f":"1-L163","v":1}]
[null,null,"S3","3.   Dirençlilik için Mali Kapasitenin Güçlendirilmesi",null,"E3",0,12,"03"]
[null,null,"S4","4.   Yüksek Dirençli Kentsel Gelişme ve Tasarımın Hedeflenmesi",null,"E4",0,12,"04"]
[null,null,"S5","5.   Ekosistemlerin Koruyucu İşlevlerinin Geliştirilmesi için Doğal Tamponların Korunması",null,"E5",0,9,"05"]
[null,null,"S6","6.   Dirençlilik için Kurumsal Kapasitenin Güçlendirilmesi",null,"E6",0,18,"06"]
[null,null,"S7","7.  Dirençlilik için Toplumsal Kapasitenin Anlaşılması ve Güçlendirilmesi",null,"E7",0,12,"07"]
[null,null,"S8","8.   Altyapı Dirençliliğinin Artırılması",null,"E8",0,27,"08"]
[null,null,"S9","9.   Etkili Afet Müdahalesinin Sağlanması",null,"E9",0,21,"09"]
[null,null,"S10","10. Daha Hızlı Toparlanma ve Daha İyi Yeniden Yapılanma",null,"E10",0,6,"10"]
[]
[null,"Section","Ref",null,"Question","SelectedScore","ThisScore"]
[null,"E1","P1.1",null,"Kentin master planında (veya ilgili strateji/plan) Sendai Çerçevesi benimsenmiş mi?",{"$f":"IF(G175=\"\",0,IF(G175=0,0,4-G175))","v":0},{"$f":"'E01'!$E$7","v":0}]
[null,"E1","P1.2",null,"Afet riskini azaltma konusunun ele alınması için uygun yetki ve kaynakların olduğu, çok kuruluşlu/sektörel bir mekanizma var mı?",{"$f":"IF(G176=\"\",0,IF(G176=0,0,4-G176))","v":0},{"$f":"'E01'!$E$18","v":0}]
[null,"E1","P1.3",null,"Dirençlilik, diğer önemli kent işlevleri / portföyleri ile gerektiği gibi entegre mi?",0,{"$f":"'E01'!$E$29","v":0}]
[null,"E2","P2.1",null,"Kentin karşı karşıya olduğu önemli tehlikeler ve bunların meydana gelme olasılıkları ile ilgili bilgisi var mı?",0,{"$f":"'E02'!$E$7","v":0}]
[null,"E2","P2.2",null,"Kent ile çeşitli kamu hizmeti sağlayıcıları ve enerji, su, yol ve tren gibi altyapıların yönetiminde görevli olan diğer bölgesel ve ulusal kurumlar arasında, sistem ve kent ölçeğinde riskler üzerindeki stres noktaları konusunda ortak bir risk anlayışı var mı? ",0,{"$f":"'E02'!$E$18","v":0}]
[null,"E2","P2.3",null,"Her bir tehlike veya tehlike grupları nedeniyle kent genelinde maruz kalma ve kırılganlık durumunu ortaya koyan, kabul edilmiş senaryolar var mı (yukarıya bakın)?",0,{"$f":"'E02'!$E$29","v":0}]
[null,"E2","P2.4",null,"Farklı senaryolarda farklı kent ve altyapı sistemleri arasındaki olası basamaklı aksaklıklara dair toplu bir anlayış var mı?",0,{"$f":"'E02'!$E$40","v":0}]
[null,"E2","P2.5",null,"Açık tehlike haritaları ve risk verileri mevcut mu? Bunlar düzenli olarak güncelleniyor mu?",0,{"$f":"'E02'!$E$51","v":0}]
[null,"E3","P3.1",null,"Kent / önde gelen kurumlar, tüm fon kaynaklarının ve \"dirençlilik payları\"nın bağlantılı olduğunu anlıyor ve harici fonları çekebilmek için kullanılabilecek tüm yolları bilerek büyük dirençlilik yatırımları için aktif olarak fon takibi yapıyor mu?",0,{"$f":"'E03'!$E$7","v":0}]
[null,"E3","P3.2",null,"Kentin yerel afet riskini azaltma amaçlı, mevcut \"koruma altında\" bütçesi, gerekli kaynakları ve ihtiyat fonu düzenlemeleri (azaltma, önleme, müdahale ve toparlanma) var mı?",0,{"$f":"'E03'!$E$18","v":0}]
[null,"E3","P3.3",null,"Kentte tüm sektörlerde (işletmeler ve topluluk) hangi düzeyde sigorta teminatı var?",0,{"$f":"'E03'!$E$29","v":0}]
[null,"E3","P3.4",null,"Dirençlilik oluşturmayı desteklemek üzere farklı işletme sektörleri ve kesimleri için hangi teşvikler mevcut?",0,{"$f":"'E03'!$E$40","v":0}]
[null,"E4","P4.1",null,"Örneğin kilit risk senaryolarına göre ekonomik faaliyet, tarımsal üretim ve nüfus merkezleri dikkate alındığında kent uygun şekilde bölgelere ayrılmış mı?",0,{"$f":"'E04'!$E$7","v":0}]
[null,"E4","P4.2",null,"Dirençliliği artırmak için yeni kentsel gelişmenin tasarlanması ve oluşturulmasına yönelik yaklaşımlar destekleniyor mu?",0,{"$f":"'E04'!$E$18","v":0}]
[null,"E4","P4.3",null,"Yapı kural veya standartları mevcut mu? Bunlar kentin bilinen tehlike ve risklerini ele alıyor mu? Bu standartlar düzenli olarak güncelleniyor mu?",0,{"$f":"'E04'!$E$29","v":0}]
[null,"E4","P4.4",null,"Bölgelere ayırma kuralları, yapı kural ve standartları yaygın olarak uygulanıyor, gerektiği gibi hayata geçirilip doğrulanıyor mu?",0,{"$f":"'E04'!$E$40","v":0}]
[null,"E5","P5.1",null,"Doğal varlıkların farkında olmanın ötesinde, kent bu doğal sermayenin kent için sağladığı işlevleri (veya hizmetleri) anlıyor mu?",0,{"$f":"'E05'!$E$7","v":0}]
[null,"E5","P5.2",null,"Yeşil ve mavi altyapı büyük kentsel gelişim ve altyapı projelerinde politika yoluyla teşvik ediliyor mu?",0,{"$f":"'E05'!$E$18","v":0}]
[null,"E5","P5.3",null,"Kent, kendi idari sınırlarının dışındaki doğal sermayenin kente sağladığı ekosistem hizmetlerinin farkında mı? Bu varlıkların korunmasını ve yönetimini desteklemek için komşu yönetimlerle yapılmış anlaşmalar var mı?",0,{"$f":"'E05'!$E$29","v":0}]
[null,"E6","P6.1",null,"Kent, riskleri azaltmak ve tanımlanmış afet senaryolarına yanıt vermek için ihtiyaç duyduğuna inanılan tüm beceri ve deneyimlere rahat bir şekilde erişebiliyor mu?",0,{"$f":"'E06'!$E$7","v":0}]
[null,"E6","P6.2",null,"Tehlike, risk ve afet bilgilerinin (anlaşılıp kullanılabilecek özellikte) halkın geneline düzgün bir şekilde dağıtılmasını sağlamak üzere yapılandırılmış mesaj yollarının ve kanalların olduğu koordineli bir halkla ilişkiler ve eğitim kampanyası var mı?",0,{"$f":"'E06'!$E$18","v":0}]
[null,"E6","P6.3",null,"Kentin dirençlilik durumu ile ilgili verilerin, kentin dirençliliğiyle ilgilenen diğer teşkilatlarla paylaşılma düzeyi.",0,{"$f":"'E06'!$E$29","v":0}]
[null,"E6","P6.4",null,"Risk ve dirençlilik konularının ele alındığı ve yönetim, işletmeler, STK'ler ve toplum dahil kentin tüm kesimlerine verilen eğitimler var mı?",0,{"$f":"'E06'!$E$40","v":0}]
[null,"E6","P6.5",null,"Eğitim materyalleri, kentte yaygın olarak kullanılan dillerin birçoğunda hazırlanmış mı?",0,{"$f":"'E06'!$E$51","v":0}]
[null,"E6","P6.6",null,"Kent, proaktif olarak, benzer zorluklarla karşılaşan diğer kentlerle bilgi alışverişi yapmaya ve onlardan bilgi almaya çalışıyor mu?",0,{"$f":"'E06'!$E$62","v":0}]
[null,"E7","P7.1",null,"Kentteki her mahallede risk azaltma ve olay sonrası müdahale sürecine \"taban\" ve toplumsal örgütler katılıyor mu?",0,{"$f":"'E07'!$E$7","v":0}]
[null,"E7","P7.2",null,"Kentteki en kırılgan nüfus için yürütülen düzenli eğitim programları var mı?",0,{"$f":"'E07'!$E$18","v":0}]
[null,"E7","P7.3",null,"İşletmelerin yüzde kaçında son 18 ayda gözden geçirilmiş olan, belgeli bir iş süreklilik planı var?",0,{"$f":"'E07'!$E$29","v":0}]
[null,"E7","P7.4",null,"Kent, DRR ile ilişkili olarak kent sakini katılımı ve iletişimleri konusunda ne kadar etkili?",0,{"$f":"'E07'!$E$40","v":0}]
[null,"E8","P8.1",null,"Kritik altyapı dirençliliği, kentin bir önceliği mi? Kentin kritik altyapı planı ve stratejisi var ve bunu uyguluyor mu?",0,{"$f":"'E08'!$E$7","v":0}]
[null,"E8","P8.2",null,"Mevcut koruyucu altyapı, risk bilgilerine göre iyi tasarlanmış ve iyi inşa edilmiş durumda mı?",0,{"$f":"'E08'!$E$18","v":0}]
[null,"E8","P8.3",null,"Kabul edilen afet senaryolarında bu iki temel hizmetin kentin önemli bölümünde büyük bir hizmet kaybı yaşaması bekleniyor mu?",0,{"$f":"'E08'!$E$29","v":0}]
[null,"E8","P8.4",null,"En kötü durum senaryosunda kentin önemli bölümünde büyük bir hizmet kaybı yaşanması bekleniyor mu? Aksaklık halinde enerji altyapı koridorlarının güvenliği korunur mu (yani kaçak riski, elektrik çarpma tehlikesi vb. olmadan)?",0,{"$f":"'E08'!$E$40","v":0}]
[null,"E8","P8.5",null,"En kötü durum senaryosunda kentin önemli bölümünde büyük bir hizmet kaybı yaşanması bekleniyor mu? Aksaklık halinde ulaşım altyapı koridorlarının güvenliği ve geçilebilirlik durumu korunur mu (yani sel riski, darbe vb. olmadan)?",0,{"$f":"'E08'!$E$51","v":0}]
[null,"E8","P8.6",null,"En kötü durum senaryosunda kentin önemli bölümünde büyük bir hizmet kaybı yaşanması bekleniyor mu?",0,{"$f":"'E08'!$E$62","v":0}]
[null,"E8","P8.7",null,"\"En kötü durum\" senaryosunda beklenen ciddi yaralanmalarla ilgilenmek için yeterli akut sağlık hizmeti olanağı var mı?",0,{"$f":"'E08'!$E$73","v":0}]
[null,"E8","P8.8",null,"\"En olası\" ve \"en ciddi\" senaryolarda hasar görme riskinde olan eğitim yapılarının yüzdesi",0,{"$f":"'E08'!$E$84","v":0}]
[null,"E8","P8.9",null,"Gereken askeri veya sivil destek kuvvetleri ile yeterli ilk müdahale ekibi teçhizatı var mı?",0,{"$f":"'E08'!$E$95","v":0}]
[null,"E9","P9.1",null,"Kentin erken uyarı ve tahminlere göre hareket etmek için bir plan veya standart faaliyet usulü var mı? Erken uyarı sistemi nüfusun yüzde kaçına ulaşabiliyor?",0,{"$f":"'E09'!$E$7","v":0}]
[null,"E9","P9.2",null,"Kentin yerel acil durumlara karşı azaltma, hazırlıklı olma ve müdahale eylemlerini özetleyen bir afet yönetim / hazırlıklı olma /acil durum müdahalesi planı var mı?",0,{"$f":"'E09'!$E$18","v":0}]
[null,"E9","P9.3",null,"Sorumlu afet yönetimi yetkilisinin, kapasite artış senaryosunda ilk müdahale ekibi görevlerini desteklemek için yeterli personel kapasitesi var mı?",0,{"$f":"'E09'!$E$29","v":0}]
[null,"E9","P9.4",null,"Teçhizat ve malzeme ihtiyaçları ile teçhizatın kullanılabilirlik durumu net bir şekilde tanımlanmış mı?",0,{"$f":"'E09'!$E$40","v":0}]
[null,"E9","P9.5",null,"Kent, olay sonrasında nüfusuna yemek ve barınak sağlayabilir mi?",0,{"$f":"'E09'!$E$51","v":0}]
[null,"E9","P9.6",null,"Tüm kurumların katıldığı, özellikle \"en olası\" ve \"en ciddi\" senaryolar ile başa çıkmak için tasarlanmış standart faaliyet usullerinin otomatik hale getirildiği bir acil durum merkezi var mı?",0,{"$f":"'E09'!$E$62","v":0}]
[null,"E9","P9.7",null,"Alıştırma ve tatbikatlara hem halk hem de uzmanlar dahil ediliyor mu?",0,{"$f":"'E09'!$E$73","v":0}]
[null,"E10","P10.1",null,"Olay sonrası toparlanma ve yeniden yapılanma için, ekonomide yeniden başlama, toplumsal boyutlar vb.nin de yer aldığı, yerleşik bir strateji veya süreç var mı?",0,{"$f":"'E10'!$E$7","v":0}]
[null,"E10","P10.2",null,"Olay sonrası değerlendirme süreçlerinde aksaklık analizleri ve alınan dersleri içselleştirip yeniden yapılanma projelerinin tasarımına ve yürütülmesine dahil etme kabiliyeti var mı?",0,{"$f":"'E10'!$E$18","v":0}]

{"sheet":"E01","index":3,"n_rows":175,"n_cols":7,"rows_kept":175,"cut":false,"hidden":false,"merged":[[28,2,31,3],[27,2,27,3],[14,2,14,3],[15,2,15,3],[16,2,16,3],[3,2,3,3],[4,2,4,3],[5,2,5,3],[25,2,25,3],[26,2,26,3],[6,2,9,3],[17,2,20,3]]}
[]
[]
[null,"P1.1 - Plan yapma"]
[null,"Soru","Açıklama"]
[]
[null,"Yanıt","Doğrulama yollarını belirtin (açıklama ve kanıt)"]
[null,null,null,null,null,{"$f":"IF(E7=1,TRUE,FALSE)","v":false}]
[null,null,null,null,null,{"$f":"IF(E7=2,TRUE,FALSE)","v":false}]
[null,null,null,null,null,{"$f":"IF(E7=3,TRUE,FALSE)","v":false}]
[null,null,null,null,null,{"$f":"IF(E7=4,TRUE,FALSE)","v":false}]
[null,"Azami düzeyde dirençlilik elde etmek için yapılabilecek eylemler","Sorumlu kuruluş","Zaman cetveli"]
[]
[]
[null,"P1.2 - Örgütlenme, koordinasyon ve katılım"]
[null,"Soru","Açıklama"]
[]
[null,"Yanıt","Doğrulama yollarını belirtin (açıklama ve kanıt)"]
[null,null,null,null,null,{"$f":"IF(E18=1,TRUE,FALSE)","v":false}]
[null,null,null,null,null,{"$f":"IF(E18=2,TRUE,FALSE)","v":false}]
[null,null,null,null,null,{"$f":"IF(E18=3,TRUE,FALSE)","v":false}]
[null,null,null,null,null,{"$f":"IF(E18=4,TRUE,FALSE)","v":false}]
[null,"Azami düzeyde dirençlilik elde etmek için yapılabilecek eylemler","Sorumlu kuruluş","Zaman cetveli"]
[]
[]
[null,"P1.3 - Entegrasyon"]
[null,"Soru","Açıklama"]
[]
[null,"Yanıt","Doğrulama yollarını belirtin (açıklama ve kanıt)"]
[null,null,null,null,null,{"$f":"IF(E29=1,TRUE,FALSE)","v":false}]
[null,null,null,null,null,{"$f":"IF(E29=2,TRUE,FALSE)","v":false}]
[null,null,null,null,null,{"$f":"IF(E29=3,TRUE,FALSE)","v":false}]
[null,null,null,null,null,{"$f":"IF(E29=4,TRUE,FALSE)","v":false}]
[null,"Azami düzeyde dirençlilik elde etmek için yapılabilecek eylemler","Sorumlu kuruluş","Zaman cetveli"]
[]
[]
[]
[]
[]
[]
[]
[]
[]
[]
[]
[]
[]
[]
[]
[]
[]
[]
[]
[]
[]
[]
[]
[]
[]
[]
[]
[]
[]
[]
[]
[]
[]
[]
[]
[]
[]
[]
[]
[]
[]
[]
[]
[]
[]
[]
[]
[]
[]
[]
[]
[]
[]
[]
[]
[]
[]
[]
[]
[]
[]
[]
[]
[]
[]
[]
[]
[]
[]
[]
[]
[]
[]
[]
[]
[]
[]
[]
[]
[]
[]
[]
[]
[]
[]
[]
[]
[]
[]
[]
[]
[]
[]
[]
[]
[]
[]
[]
[]
[]
[]
[]
[]
[]
[]
[]
[]
[]
[]
[]
[]
[]
[]
[]
[]
[]
[]
[]
[]
[]
[]
[]
[]
[]
[]
[]
[]
[]
[]
[]
[]
[]
[]
[]
[]
[]
[]
[]
[]
[]
[]
[null,null,null,null,null,null,{"$f":"'E01'!$E$7","v":0}]

{"sheet":"E02","index":4,"n_rows":55,"n_cols":6,"rows_kept":55,"cut":false,"hidden":false,"merged":[[3,2,3,3],[4,2,4,3],[5,2,5,3],[15,2,15,3],[16,2,16,3],[14,2,14,3],[6,2,9,3],[38,2,38,3],[17,2,20,3],[28,2,31,3],[39,2,42,3],[50,2,53,3],[47,2,47,3],[48,2,48,3],[49,2,49,3],[25,2,25,3],[26,2,26,3],[27,2,27,3],[36,2,36,3],[37,2,37,3]]}
[]
[]
[null,"P2.1 - Tehlike değerlendirmesi"]
[null,"Soru","Açıklama"]
[]
[null,"Yanıt","Doğrulama yollarını belirtin (açıklama ve kanıt)"]
[null,null,null,null,null,{"$f":"IF(E7=1,TRUE,FALSE)","v":false}]
[null,null,null,null,null,{"$f":"IF(E7=2,TRUE,FALSE)","v":false}]
[null,null,null,null,null,{"$f":"IF(E7=3,TRUE,FALSE)","v":false}]
[null,null,null,null,null,{"$f":"IF(E7=4,TRUE,FALSE)","v":false}]
[null,"Azami düzeyde dirençlilik elde etmek için yapılabilecek eylemler","Sorumlu kuruluş","Zaman cetveli"]
[]
[]
[null,"P2.2 - Altyapı riskine dair ortak anlayış"]
[null,"Soru","Açıklama"]
[]
[null,"Yanıt","Doğrulama yollarını belirtin (açıklama ve kanıt)"]
[null,null,null,null,null,{"$f":"IF(E18=1,TRUE,FALSE)","v":false}]
[null,null,null,null,null,{"$f":"IF(E18=2,TRUE,FALSE)","v":false}]
[null,null,null,null,null,{"$f":"IF(E18=3,TRUE,FALSE)","v":false}]
[null,null,null,null,null,{"$f":"IF(E18=4,TRUE,FALSE)","v":false}]
[null,"Azami düzeyde dirençlilik elde etmek için yapılabilecek eylemler","Sorumlu kuruluş","Zaman cetveli"]
[]
[]
[null,"P2.3 - Maruz kalma ve kırılganlık durumu bilgisi"]
[null,"Soru","Açıklama"]
[]
[null,"Yanıt","Doğrulama yollarını belirtin (açıklama ve kanıt)"]
[null,null,null,null,null,{"$f":"IF(E29=1,TRUE,FALSE)","v":false}]
[null,null,null,null,null,{"$f":"IF(E29=2,TRUE,FALSE)","v":false}]
[null,null,null,null,null,{"$f":"IF(E29=3,TRUE,FALSE)","v":false}]
[null,null,null,null,null,{"$f":"IF(E29=4,TRUE,FALSE)","v":false}]
[null,"Azami düzeyde dirençlilik elde etmek için yapılabilecek eylemler","Sorumlu kuruluş","Zaman cetveli"]
[]
[]
[null,"P2.4 - Basamaklı etkiler"]
[null,"Soru","Açıklama"]
[]
[null,"Yanıt","Doğrulama yollarını belirtin (açıklama ve kanıt)"]
[null,null,null,null,null,{"$f":"IF(E40=1,TRUE,FALSE)","v":false}]
[null,null,null,null,null,{"$f":"IF(E40=2,TRUE,FALSE)","v":false}]
[null,null,null,null,null,{"$f":"IF(E40=3,TRUE,FALSE)","v":false}]
[null,null,null,null,null,{"$f":"IF(E40=4,TRUE,FALSE)","v":false}]
[null,"Azami düzeyde dirençlilik elde etmek için yapılabilecek eylemler","Sorumlu kuruluş","Zaman cetveli"]
[]
[]
[null,"P2.5 - Risk bilgilerinin güncellenmesi ve sunumu"]
[null,"Soru","Açıklama"]
[]
[null,"Yanıt","Doğrulama yollarını belirtin (açıklama ve kanıt)"]
[null,null,null,null,null,{"$f":"IF(E51=1,TRUE,FALSE)","v":false}]
[null,null,null,null,null,{"$f":"IF(E51=2,TRUE,FALSE)","v":false}]
[null,null,null,null,null,{"$f":"IF(E51=3,TRUE,FALSE)","v":false}]
[null,null,null,null,null,{"$f":"IF(E51=4,TRUE,FALSE)","v":false}]
[null,"Azami düzeyde dirençlilik elde etmek için yapılabilecek eylemler","Sorumlu kuruluş","Zaman cetveli"]

{"sheet":"E03","index":5,"n_rows":44,"n_cols":6,"rows_kept":44,"cut":false,"hidden":false,"merged":[[39,2,42,3],[38,2,38,3],[3,2,3,3],[4,2,4,3],[5,2,5,3],[14,2,14,3],[15,2,15,3],[16,2,16,3],[25,2,25,3],[26,2,26,3],[27,2,27,3],[36,2,36,3],[37,2,37,3],[17,2,20,3],[6,2,9,3],[28,2,31,3]]}
[]
[]
[null,"P3.1 - Kente yeni yatırımların çekilmesinde kullanılabilecek yaklaşımların bilinmesi"]
[null,"Soru","Açıklama"]
[]
[null,"Yanıt","Doğrulama yollarını belirtin (açıklama ve kanıt)"]
[null,null,null,null,null,{"$f":"IF(E7=1,TRUE,FALSE)","v":false}]
[null,null,null,null,null,{"$f":"IF(E7=2,TRUE,FALSE)","v":false}]
[null,null,null,null,null,{"$f":"IF(E7=3,TRUE,FALSE)","v":false}]
[null,null,null,null,null,{"$f":"IF(E7=4,TRUE,FALSE)","v":false}]
[null,"Azami düzeyde dirençlilik elde etmek için yapılabilecek eylemler","Sorumlu kuruluş","Zaman cetveli"]
[]
[]
[null,"P3.2 - dirençlilik için ihtiyat fonları dahil mali plan ve bütçe"]
[null,"Soru","Açıklama"]
[]
[null,"Yanıt","Doğrulama yollarını belirtin (açıklama ve kanıt)"]
[null,null,null,null,null,{"$f":"IF(E18=1,TRUE,FALSE)","v":false}]
[null,null,null,null,null,{"$f":"IF(E18=2,TRUE,FALSE)","v":false}]
[null,null,null,null,null,{"$f":"IF(E18=3,TRUE,FALSE)","v":false}]
[null,null,null,null,null,{"$f":"IF(E18=4,TRUE,FALSE)","v":false}]
[null,"Azami düzeyde dirençlilik elde etmek için yapılabilecek eylemler","Sorumlu kuruluş","Zaman cetveli"]
[]
[]
[null,"P3.3 - Sigorta"]
[null,"Soru","Açıklama"]
[]
[null,"Yanıt","Doğrulama yollarını belirtin (açıklama ve kanıt)"]
[null,null,null,null,null,{"$f":"IF(E29=1,TRUE,FALSE)","v":false}]
[null,null,null,null,null,{"$f":"IF(E29=2,TRUE,FALSE)","v":false}]
[null,null,null,null,null,{"$f":"IF(E29=3,TRUE,FALSE)","v":false}]
[null,null,null,null,null,{"$f":"IF(E29=4,TRUE,FALSE)","v":false}]
[null,"Azami düzeyde dirençlilik elde etmek için yapılabilecek eylemler","Sorumlu kuruluş","Zaman cetveli"]
[]
[]
[null,"P3.4 - Teşvikler"]
[null,"Soru","Açıklama"]
[]
[null,"Yanıt","Doğrulama yollarını belirtin (açıklama ve kanıt)"]
[null,null,null,null,null,{"$f":"IF(E40=1,TRUE,FALSE)","v":false}]
[null,null,null,null,null,{"$f":"IF(E40=2,TRUE,FALSE)","v":false}]
[null,null,null,null,null,{"$f":"IF(E40=3,TRUE,FALSE)","v":false}]
[null,null,null,null,null,{"$f":"IF(E40=4,TRUE,FALSE)","v":false}]
[null,"Azami düzeyde dirençlilik elde etmek için yapılabilecek eylemler","Sorumlu kuruluş","Zaman cetveli"]

{"sheet":"E04","index":6,"n_rows":44,"n_cols":6,"rows_kept":44,"cut":false,"hidden":false,"merged":[[3,2,3,3],[4,2,4,3],[5,2,5,3],[14,2,14,3],[15,2,15,3],[17,2,20,3],[6,2,9,3],[28,2,31,3],[39,2,42,3],[25,2,25,3],[26,2,26,3],[27,2,27,3],[36,2,36,3],[37,2,37,3],[38,2,38,3],[16,2,16,3]]}
[]
[]
[null,"P4.1 - Arazi kullanımının bölgelere ayrılması "]
[null,"Soru","Açıklama"]
[]
[null,"Yanıt","Doğrulama yollarını belirtin (açıklama ve kanıt)"]
[null,null,null,null,null,{"$f":"IF(E7=1,TRUE,FALSE)","v":false}]
[null,null,null,null,null,{"$f":"IF(E7=2,TRUE,FALSE)","v":false}]
[null,null,null,null,null,{"$f":"IF(E7=3,TRUE,FALSE)","v":false}]
[null,null,null,null,null,{"$f":"IF(E7=4,TRUE,FALSE)","v":false}]
[null,"Azami düzeyde dirençlilik elde etmek için yapılabilecek eylemler","Sorumlu kuruluş","Zaman cetveli"]
[]
[]
[null,"P4.2 - Yeni kentsel gelişme"]
[null,"Soru","Açıklama"]
[]
[null,"Yanıt","Doğrulama yollarını belirtin (açıklama ve kanıt)"]
[null,null,null,null,null,{"$f":"IF(E18=1,TRUE,FALSE)","v":false}]
[null,null,null,null,null,{"$f":"IF(E18=2,TRUE,FALSE)","v":false}]
[null,null,null,null,null,{"$f":"IF(E18=3,TRUE,FALSE)","v":false}]
[null,null,null,null,null,{"$f":"IF(E18=4,TRUE,FALSE)","v":false}]
[null,"Azami düzeyde dirençlilik elde etmek için yapılabilecek eylemler","Sorumlu kuruluş","Zaman cetveli"]
[]
[]
[null,"P4.3 - Yapı kural ve standartları"]
[null,"Soru","Açıklama"]
[]
[null,"Yanıt","Doğrulama yollarını belirtin (açıklama ve kanıt)"]
[null,null,null,null,null,{"$f":"IF(E29=1,TRUE,FALSE)","v":false}]
[null,null,null,null,null,{"$f":"IF(E29=2,TRUE,FALSE)","v":false}]
[null,null,null,null,null,{"$f":"IF(E29=3,TRUE,FALSE)","v":false}]
[null,null,null,null,null,{"$f":"IF(E29=4,TRUE,FALSE)","v":false}]
[null,"Azami düzeyde dirençlilik elde etmek için yapılabilecek eylemler","Sorumlu kuruluş","Zaman cetveli"]
[]
[]
[null,"P4.4 - İmar, yapı kural ve standartlarının uygulanması"]
[null,"Soru","Açıklama"]
[]
[null,"Yanıt","Doğrulama yollarını belirtin (açıklama ve kanıt)"]
[null,null,null,null,null,{"$f":"IF(E40=1,TRUE,FALSE)","v":false}]
[null,null,null,null,null,{"$f":"IF(E40=2,TRUE,FALSE)","v":false}]
[null,null,null,null,null,{"$f":"IF(E40=3,TRUE,FALSE)","v":false}]
[null,null,null,null,null,{"$f":"IF(E40=4,TRUE,FALSE)","v":false}]
[null,"Azami düzeyde dirençlilik elde etmek için yapılabilecek eylemler","Sorumlu kuruluş","Zaman cetveli"]

{"sheet":"E05","index":7,"n_rows":33,"n_cols":6,"rows_kept":33,"cut":false,"hidden":false,"merged":[[15,2,15,3],[16,2,16,3],[6,2,9,3],[3,2,3,3],[4,2,4,3],[5,2,5,3],[14,2,14,3],[25,2,25,3],[26,2,26,3],[27,2,27,3],[28,2,31,3],[17,2,20,3]]}
[]
[]
[null,"P5.1 - Ekosistem hizmetlerinin / işlevlerinin bilinmesi ve anlaşılması"]
[null,"Soru","Açıklama"]
[]
[null,"Yanıt","Doğrulama yollarını belirtin (açıklama ve kanıt)"]
[null,null,null,null,null,{"$f":"IF(E7=1,TRUE,FALSE)","v":false}]
[null,null,null,null,null,{"$f":"IF(E7=2,TRUE,FALSE)","v":false}]
[null,null,null,null,null,{"$f":"IF(E7=3,TRUE,FALSE)","v":false}]
[null,null,null,null,null,{"$f":"IF(E7=4,TRUE,FALSE)","v":false}]
[null,"Azami düzeyde dirençlilik elde etmek için yapılabilecek eylemler","Sorumlu kuruluş","Zaman cetveli"]
[]
[]
[null,"P5.2 - Yeşil ve mavi altyapıların kent politika ve projelerine entegrasyonu"]
[null,"Soru","Açıklama"]
[]
[null,"Yanıt","Doğrulama yollarını belirtin (açıklama ve kanıt)"]
[null,null,null,null,null,{"$f":"IF(E18=1,TRUE,FALSE)","v":false}]
[null,null,null,null,null,{"$f":"IF(E18=2,TRUE,FALSE)","v":false}]
[null,null,null,null,null,{"$f":"IF(E18=3,TRUE,FALSE)","v":false}]
[null,null,null,null,null,{"$f":"IF(E18=4,TRUE,FALSE)","v":false}]
[null,"Azami düzeyde dirençlilik elde etmek için yapılabilecek eylemler","Sorumlu kuruluş","Zaman cetveli"]
[]
[]
[null,"P5.3 - Sınır ötesi çevre sorunları"]
[null,"Soru","Açıklama"]
[]
[null,"Yanıt","Doğrulama yollarını belirtin (açıklama ve kanıt)"]
[null,null,null,null,null,{"$f":"IF(E29=1,TRUE,FALSE)","v":false}]
[null,null,null,null,null,{"$f":"IF(E29=2,TRUE,FALSE)","v":false}]
[null,null,null,null,null,{"$f":"IF(E29=3,TRUE,FALSE)","v":false}]
[null,null,null,null,null,{"$f":"IF(E29=4,TRUE,FALSE)","v":false}]
[null,"Azami düzeyde dirençlilik elde etmek için yapılabilecek eylemler","Sorumlu kuruluş","Zaman cetveli"]

{"sheet":"E06","index":8,"n_rows":66,"n_cols":6,"rows_kept":66,"cut":false,"hidden":false,"merged":[[59,2,59,3],[16,2,16,3],[3,2,3,3],[4,2,4,3],[5,2,5,3],[14,2,14,3],[15,2,15,3],[6,2,9,3],[61,2,64,3],[50,2,53,3],[39,2,42,3],[28,2,31,3],[17,2,20,3],[60,2,60,3],[25,2,25,3],[26,2,26,3],[27,2,27,3],[36,2,36,3],[37,2,37,3],[38,2,38,3],[47,2,47,3],[48,2,48,3],[49,2,49,3],[58,2,58,3]]}
[]
[]
[null,"P6.1 - Beceriler ve deneyim"]
[null,"Soru","Açıklama"]
[]
[null,"Yanıt","Doğrulama yollarını belirtin (açıklama ve kanıt)"]
[null,null,null,null,null,{"$f":"IF(E7=1,TRUE,FALSE)","v":false}]
[null,null,null,null,null,{"$f":"IF(E7=2,TRUE,FALSE)","v":false}]
[null,null,null,null,null,{"$f":"IF(E7=3,TRUE,FALSE)","v":false}]
[null,null,null,null,null,{"$f":"IF(E7=4,TRUE,FALSE)","v":false}]
[null,"Azami düzeyde dirençlilik elde etmek için yapılabilecek eylemler","Sorumlu kuruluş","Zaman cetveli"]
[]
[]
[null,"P6.2 - Halkın eğitimi ve farkındalığı"]
[null,"Soru","Açıklama"]
[]
[null,"Yanıt","Doğrulama yollarını belirtin (açıklama ve kanıt)"]
[null,null,null,null,null,{"$f":"IF(E18=1,TRUE,FALSE)","v":false}]
[null,null,null,null,null,{"$f":"IF(E18=2,TRUE,FALSE)","v":false}]
[null,null,null,null,null,{"$f":"IF(E18=3,TRUE,FALSE)","v":false}]
[null,null,null,null,null,{"$f":"IF(E18=4,TRUE,FALSE)","v":false}]
[null,"Azami düzeyde dirençlilik elde etmek için yapılabilecek eylemler","Sorumlu kuruluş","Zaman cetveli"]
[]
[]
[null,"P6.3 - Veri paylaşımı"]
[null,"Soru","Açıklama"]
[]
[null,"Yanıt","Doğrulama yollarını belirtin (açıklama ve kanıt)"]
[null,null,null,null,null,{"$f":"IF(E29=1,TRUE,FALSE)","v":false}]
[null,null,null,null,null,{"$f":"IF(E29=2,TRUE,FALSE)","v":false}]
[null,null,null,null,null,{"$f":"IF(E29=3,TRUE,FALSE)","v":false}]
[null,null,null,null,null,{"$f":"IF(E29=4,TRUE,FALSE)","v":false}]
[null,"Azami düzeyde dirençlilik elde etmek için yapılabilecek eylemler","Sorumlu kuruluş","Zaman cetveli"]
[]
[]
[null,"P6.4 - Eğitimin verilmesi"]
[null,"Soru","Açıklama"]
[]
[null,"Yanıt","Doğrulama yollarını belirtin (açıklama ve kanıt)"]
[null,null,null,null,null,{"$f":"IF(E40=1,TRUE,FALSE)","v":false}]
[null,null,null,null,null,{"$f":"IF(E40=2,TRUE,FALSE)","v":false}]
[null,null,null,null,null,{"$f":"IF(E40=3,TRUE,FALSE)","v":false}]
[null,null,null,null,null,{"$f":"IF(E40=4,TRUE,FALSE)","v":false}]
[null,"Azami düzeyde dirençlilik elde etmek için yapılabilecek eylemler","Sorumlu kuruluş","Zaman cetveli"]
[]
[]
[null,"P6.5 - Diller"]
[null,"Soru","Açıklama"]
[]
[null,"Yanıt","Doğrulama yollarını belirtin (açıklama ve kanıt)"]
[null,null,null,null,null,{"$f":"IF(E51=1,TRUE,FALSE)","v":false}]
[null,null,null,null,null,{"$f":"IF(E51=2,TRUE,FALSE)","v":false}]
[null,null,null,null,null,{"$f":"IF(E51=3,TRUE,FALSE)","v":false}]
[null,null,null,null,null,{"$f":"IF(E51=4,TRUE,FALSE)","v":false}]
[null,"Azami düzeyde dirençlilik elde etmek için yapılabilecek eylemler","Sorumlu kuruluş","Zaman cetveli"]
[]
[]
[null,"P6.6 - Başkalarından bilgi alma "]
[null,"Soru","Açıklama"]
[]
[null,"Yanıt","Doğrulama yollarını belirtin (açıklama ve kanıt)"]
[null,null,null,null,null,{"$f":"IF(E62=1,TRUE,FALSE)","v":false}]
[null,null,null,null,null,{"$f":"IF(E62=2,TRUE,FALSE)","v":false}]
[null,null,null,null,null,{"$f":"IF(E62=3,TRUE,FALSE)","v":false}]
[null,null,null,null,null,{"$f":"IF(E62=4,TRUE,FALSE)","v":false}]
[null,"Azami düzeyde dirençlilik elde etmek için yapılabilecek eylemler","Sorumlu kuruluş","Zaman cetveli"]

{"sheet":"E07","index":9,"n_rows":44,"n_cols":6,"rows_kept":44,"cut":false,"hidden":false,"merged":[[16,2,16,3],[6,2,9,3],[3,2,3,3],[4,2,4,3],[5,2,5,3],[14,2,14,3],[15,2,15,3],[17,2,20,3],[28,2,31,3],[39,2,42,3],[25,2,25,3],[26,2,26,3],[27,2,27,3],[36,2,36,3],[37,2,37,3],[38,2,38,3]]}
[]
[]
[null,"P7.1 - Toplumsal veya \"taban\" örgütler, ağlar ve eğitim"]
[null,"Soru","Açıklama"]
[]
[null,"Yanıt","Doğrulama yollarını belirtin (açıklama ve kanıt)"]
[null,null,null,null,null,{"$f":"IF(E7=1,TRUE,FALSE)","v":false}]
[null,null,null,null,null,{"$f":"IF(E7=2,TRUE,FALSE)","v":false}]
[null,null,null,null,null,{"$f":"IF(E7=3,TRUE,FALSE)","v":false}]
[null,null,null,null,null,{"$f":"IF(E7=4,TRUE,FALSE)","v":false}]
[null,"Azami düzeyde dirençlilik elde etmek için yapılabilecek eylemler","Sorumlu kuruluş","Zaman cetveli"]
[]
[]
[null,"P7.2 - \"Geride kimseyi bırakma\" sosyal ağları"]
[null,"Soru","Açıklama"]
[]
[null,"Yanıt","Doğrulama yollarını belirtin (açıklama ve kanıt)"]
[null,null,null,null,null,{"$f":"IF(E18=1,TRUE,FALSE)","v":false}]
[null,null,null,null,null,{"$f":"IF(E18=2,TRUE,FALSE)","v":false}]
[null,null,null,null,null,{"$f":"IF(E18=3,TRUE,FALSE)","v":false}]
[null,null,null,null,null,{"$f":"IF(E18=4,TRUE,FALSE)","v":false}]
[null,"Azami düzeyde dirençlilik elde etmek için yapılabilecek eylemler","Sorumlu kuruluş","Zaman cetveli"]
[]
[]
[null,"P7.3 - Özel sektör / işverenler"]
[null,"Soru","Açıklama"]
[]
[null,"Yanıt","Doğrulama yollarını belirtin (açıklama ve kanıt)"]
[null,null,null,null,null,{"$f":"IF(E29=1,TRUE,FALSE)","v":false}]
[null,null,null,null,null,{"$f":"IF(E29=2,TRUE,FALSE)","v":false}]
[null,null,null,null,null,{"$f":"IF(E29=3,TRUE,FALSE)","v":false}]
[null,null,null,null,null,{"$f":"IF(E29=4,TRUE,FALSE)","v":false}]
[null,"Azami düzeyde dirençlilik elde etmek için yapılabilecek eylemler","Sorumlu kuruluş","Zaman cetveli"]
[]
[]
[null,"P7.4 - Kent sakinleri için katılım teknikleri"]
[null,"Soru","Açıklama"]
[]
[null,"Yanıt","Doğrulama yollarını belirtin (açıklama ve kanıt)"]
[null,null,null,null,null,{"$f":"IF(E40=1,TRUE,FALSE)","v":false}]
[null,null,null,null,null,{"$f":"IF(E40=2,TRUE,FALSE)","v":false}]
[null,null,null,null,null,{"$f":"IF(E40=3,TRUE,FALSE)","v":false}]
[null,null,null,null,null,{"$f":"IF(E40=4,TRUE,FALSE)","v":false}]
[null,"Azami düzeyde dirençlilik elde etmek için yapılabilecek eylemler","Sorumlu kuruluş","Zaman cetveli"]

{"sheet":"E08","index":10,"n_rows":99,"n_cols":6,"rows_kept":99,"cut":false,"hidden":false,"merged":[[3,2,3,3],[4,2,4,3],[5,2,5,3],[14,2,14,3],[15,2,15,3],[6,2,9,3],[80,2,80,3],[81,2,81,3],[82,2,82,3],[47,2,47,3],[48,2,48,3],[49,2,49,3],[58,2,58,3],[59,2,59,3],[60,2,60,3],[61,2,64,3],[72,2,75,3],[69,2,69,3],[70,2,70,3],[71,2,71,3],[16,2,16,3],[83,2,86,3],[94,2,97,3],[91,2,91,3],[92,2,92,3],[93,2,93,3],[17,2,20,3],[28,2,31,3],[39,2,42,3],[50,2,53,3],[25,2,25,3],[26,2,26,3],[27,2,27,3],[36,2,36,3],[37,2,37,3],[38,2,38,3]]}
[]
[]
[null,"P8.1 - Kritik altyapı değerlendirmesi "]
[null,"Soru","Açıklama"]
[]
[null,"Yanıt","Doğrulama yollarını belirtin (açıklama ve kanıt)"]
[null,null,null,null,null,{"$f":"IF(E7=1,TRUE,FALSE)","v":false}]
[null,null,null,null,null,{"$f":"IF(E7=2,TRUE,FALSE)","v":false}]
[null,null,null,null,null,{"$f":"IF(E7=3,TRUE,FALSE)","v":false}]
[null,null,null,null,null,{"$f":"IF(E7=4,TRUE,FALSE)","v":false}]
[null,"Azami düzeyde dirençlilik elde etmek için yapılabilecek eylemler","Sorumlu kuruluş","Zaman cetveli"]
[]
[]
[null,"P8.2 - Koruyucu altyapı"]
[null,"Soru","Açıklama"]
[]
[null,"Yanıt","Doğrulama yollarını belirtin (açıklama ve kanıt)"]
[null,null,null,null,null,{"$f":"IF(E18=1,TRUE,FALSE)","v":false}]
[null,null,null,null,null,{"$f":"IF(E18=2,TRUE,FALSE)","v":false}]
[null,null,null,null,null,{"$f":"IF(E18=3,TRUE,FALSE)","v":false}]
[null,null,null,null,null,{"$f":"IF(E18=4,TRUE,FALSE)","v":false}]
[null,"Azami düzeyde dirençlilik elde etmek için yapılabilecek eylemler","Sorumlu kuruluş","Zaman cetveli"]
[]
[]
[null,"P8.3 - Su - İçme ve Temizlik Amaçlı"]
[null,"Soru","Açıklama"]
[]
[null,"Yanıt","Doğrulama yollarını belirtin (açıklama ve kanıt)"]
[null,null,null,null,null,{"$f":"IF(E29=1,TRUE,FALSE)","v":false}]
[null,null,null,null,null,{"$f":"IF(E29=2,TRUE,FALSE)","v":false}]
[null,null,null,null,null,{"$f":"IF(E29=3,TRUE,FALSE)","v":false}]
[null,null,null,null,null,{"$f":"IF(E29=4,TRUE,FALSE)","v":false}]
[null,"Azami düzeyde dirençlilik elde etmek için yapılabilecek eylemler","Sorumlu kuruluş","Zaman cetveli"]
[]
[]
[null,"P8.4 - Enerji "]
[null,"Soru","Açıklama"]
[]
[null,"Yanıt","Doğrulama yollarını belirtin (açıklama ve kanıt)"]
[null,null,null,null,null,{"$f":"IF(E40=1,TRUE,FALSE)","v":false}]
[null,null,null,null,null,{"$f":"IF(E40=2,TRUE,FALSE)","v":false}]
[null,null,null,null,null,{"$f":"IF(E40=3,TRUE,FALSE)","v":false}]
[null,null,null,null,null,{"$f":"IF(E40=4,TRUE,FALSE)","v":false}]
[null,"Azami düzeyde dirençlilik elde etmek için yapılabilecek eylemler","Sorumlu kuruluş","Zaman cetveli"]
[]
[]
[null,"P8.5 - Ulaşım"]
[null,"Soru","Açıklama"]
[]
[null,"Yanıt","Doğrulama yollarını belirtin (açıklama ve kanıt)"]
[null,null,null,null,null,{"$f":"IF(E51=1,TRUE,FALSE)","v":false}]
[null,null,null,null,null,{"$f":"IF(E51=2,TRUE,FALSE)","v":false}]
[null,null,null,null,null,{"$f":"IF(E51=3,TRUE,FALSE)","v":false}]
[null,null,null,null,null,{"$f":"IF(E51=4,TRUE,FALSE)","v":false}]
[null,"Azami düzeyde dirençlilik elde etmek için yapılabilecek eylemler","Sorumlu kuruluş","Zaman cetveli"]
[]
[]
[null,"P8.6 - İletişim"]
[null,"Soru","Açıklama"]
[]
[null,"Yanıt","Doğrulama yollarını belirtin (açıklama ve kanıt)"]
[null,null,null,null,null,{"$f":"IF(E62=1,TRUE,FALSE)","v":false}]
[null,null,null,null,null,{"$f":"IF(E62=2,TRUE,FALSE)","v":false}]
[null,null,null,null,null,{"$f":"IF(E62=3,TRUE,FALSE)","v":false}]
[null,null,null,null,null,{"$f":"IF(E62=4,TRUE,FALSE)","v":false}]
[null,"Azami düzeyde dirençlilik elde etmek için yapılabilecek eylemler","Sorumlu kuruluş","Zaman cetveli"]
[]
[]
[null,"P8.7 - Sağlık hizmetleri"]
[null,"Soru","Açıklama"]
[]
[null,"Yanıt","Doğrulama yollarını belirtin (açıklama ve kanıt)"]
[null,null,null,null,null,{"$f":"IF(E73=1,TRUE,FALSE)","v":false}]
[null,null,null,null,null,{"$f":"IF(E73=2,TRUE,FALSE)","v":false}]
[null,null,null,null,null,{"$f":"IF(E73=3,TRUE,FALSE)","v":false}]
[null,null,null,null,null,{"$f":"IF(E73=4,TRUE,FALSE)","v":false}]
[null,"Azami düzeyde dirençlilik elde etmek için yapılabilecek eylemler","Sorumlu kuruluş","Zaman cetveli"]
[]
[]
[null,"P8.8 - Eğitim tesisleri"]
[null,"Soru","Açıklama"]
[]
[null,"Yanıt","Doğrulama yollarını belirtin (açıklama ve kanıt)"]
[null,null,null,null,null,{"$f":"IF(E84=1,TRUE,FALSE)","v":false}]
[null,null,null,null,null,{"$f":"IF(E84=2,TRUE,FALSE)","v":false}]
[null,null,null,null,null,{"$f":"IF(E84=3,TRUE,FALSE)","v":false}]
[null,null,null,null,null,{"$f":"IF(E84=4,TRUE,FALSE)","v":false}]
[null,"Azami düzeyde dirençlilik elde etmek için yapılabilecek eylemler","Sorumlu kuruluş","Zaman cetveli"]
[]
[]
[null,"P8.9 - İlk müdahale varlıkları"]
[null,"Soru","Açıklama"]
[]
[null,"Yanıt","Doğrulama yollarını belirtin (açıklama ve kanıt)"]
[null,null,null,null,null,{"$f":"IF(E95=1,TRUE,FALSE)","v":false}]
[null,null,null,null,null,{"$f":"IF(E95=2,TRUE,FALSE)","v":false}]
[null,null,null,null,null,{"$f":"IF(E95=3,TRUE,FALSE)","v":false}]
[null,null,null,null,null,{"$f":"IF(E95=4,TRUE,FALSE)","v":false}]
[null,"Azami düzeyde dirençlilik elde etmek için yapılabilecek eylemler","Sorumlu kuruluş","Zaman cetveli"]

{"sheet":"E09","index":11,"n_rows":77,"n_cols":6,"rows_kept":77,"cut":false,"hidden":false,"merged":[[38,2,38,3],[3,2,3,3],[4,2,4,3],[5,2,5,3],[14,2,14,3],[15,2,15,3],[16,2,16,3],[25,2,25,3],[26,2,26,3],[27,2,27,3],[36,2,36,3],[37,2,37,3],[72,2,75,3],[69,2,69,3],[70,2,70,3],[71,2,71,3],[6,2,9,3],[17,2,20,3],[28,2,31,3],[39,2,42,3],[50,2,53,3],[61,2,64,3],[47,2,47,3],[48,2,48,3],[49,2,49,3],[58,2,58,3],[59,2,59,3],[60,2,60,3]]}
[]
[]
[null,"P9.1 - Erken uyarı"]
[null,"Soru","Açıklama"]
[]
[null,"Yanıt","Doğrulama yollarını belirtin (açıklama ve kanıt)"]
[null,null,null,null,null,{"$f":"IF(E7=1,TRUE,FALSE)","v":false}]
[null,null,null,null,null,{"$f":"IF(E7=2,TRUE,FALSE)","v":false}]
[null,null,null,null,null,{"$f":"IF(E7=3,TRUE,FALSE)","v":false}]
[null,null,null,null,null,{"$f":"IF(E7=4,TRUE,FALSE)","v":false}]
[null,"Azami düzeyde dirençlilik elde etmek için yapılabilecek eylemler","Sorumlu kuruluş","Zaman cetveli"]
[]
[]
[null,"P9.2 - Olay yönetim planları"]
[null,"Soru","Açıklama"]
[]
[null,"Yanıt","Doğrulama yollarını belirtin (açıklama ve kanıt)"]
[null,null,null,null,null,{"$f":"IF(E18=1,TRUE,FALSE)","v":false}]
[null,null,null,null,null,{"$f":"IF(E18=2,TRUE,FALSE)","v":false}]
[null,null,null,null,null,{"$f":"IF(E18=3,TRUE,FALSE)","v":false}]
[null,null,null,null,null,{"$f":"IF(E18=4,TRUE,FALSE)","v":false}]
[null,"Azami düzeyde dirençlilik elde etmek için yapılabilecek eylemler","Sorumlu kuruluş","Zaman cetveli"]
[]
[]
[null,"P9.3 - Personel / ilk müdahale ekibi ihtiyaçları"]
[null,"Soru","Açıklama"]
[]
[null,"Yanıt","Doğrulama yollarını belirtin (açıklama ve kanıt)"]
[null,null,null,null,null,{"$f":"IF(E29=1,TRUE,FALSE)","v":false}]
[null,null,null,null,null,{"$f":"IF(E29=2,TRUE,FALSE)","v":false}]
[null,null,null,null,null,{"$f":"IF(E29=3,TRUE,FALSE)","v":false}]
[null,null,null,null,null,{"$f":"IF(E29=4,TRUE,FALSE)","v":false}]
[null,"Azami düzeyde dirençlilik elde etmek için yapılabilecek eylemler","Sorumlu kuruluş","Zaman cetveli"]
[]
[]
[null,"P9.4 - Teçhizat ve yardım malzemesi ihtiyaçları"]
[null,"Soru","Açıklama"]
[]
[null,"Yanıt","Doğrulama yollarını belirtin (açıklama ve kanıt)"]
[null,null,null,null,null,{"$f":"IF(E40=1,TRUE,FALSE)","v":false}]
[null,null,null,null,null,{"$f":"IF(E40=2,TRUE,FALSE)","v":false}]
[null,null,null,null,null,{"$f":"IF(E40=3,TRUE,FALSE)","v":false}]
[null,null,null,null,null,{"$f":"IF(E40=4,TRUE,FALSE)","v":false}]
[null,"Azami düzeyde dirençlilik elde etmek için yapılabilecek eylemler","Sorumlu kuruluş","Zaman cetveli"]
[]
[]
[null,"P9.5 - Gıda, barınak, temel ürünler ve yakıt temini"]
[null,"Soru","Açıklama"]
[]
[null,"Yanıt","Doğrulama yollarını belirtin (açıklama ve kanıt)"]
[null,null,null,null,null,{"$f":"IF(E51=1,TRUE,FALSE)","v":false}]
[null,null,null,null,null,{"$f":"IF(E51=2,TRUE,FALSE)","v":false}]
[null,null,null,null,null,{"$f":"IF(E51=3,TRUE,FALSE)","v":false}]
[null,null,null,null,null,{"$f":"IF(E51=4,TRUE,FALSE)","v":false}]
[null,"Azami düzeyde dirençlilik elde etmek için yapılabilecek eylemler","Sorumlu kuruluş","Zaman cetveli"]
[]
[]
[null,"P9.6 - Birlikte faaliyet gösterebilme ve kurumlar arası çalışmalar"]
[null,"Soru","Açıklama"]
[]
[null,"Yanıt","Doğrulama yollarını belirtin (açıklama ve kanıt)"]
[null,null,null,null,null,{"$f":"IF(E62=1,TRUE,FALSE)","v":false}]
[null,null,null,null,null,{"$f":"IF(E62=2,TRUE,FALSE)","v":false}]
[null,null,null,null,null,{"$f":"IF(E62=3,TRUE,FALSE)","v":false}]
[null,null,null,null,null,{"$f":"IF(E62=4,TRUE,FALSE)","v":false}]
[null,"Azami düzeyde dirençlilik elde etmek için yapılabilecek eylemler","Sorumlu kuruluş","Zaman cetveli"]
[]
[]
[null,"P9.7 - Tatbikatlar"]
[null,"Soru","Açıklama"]
[]
[null,"Yanıt","Doğrulama yollarını belirtin (açıklama ve kanıt)"]
[null,null,null,null,null,{"$f":"IF(E73=1,TRUE,FALSE)","v":false}]
[null,null,null,null,null,{"$f":"IF(E73=2,TRUE,FALSE)","v":false}]
[null,null,null,null,null,{"$f":"IF(E73=3,TRUE,FALSE)","v":false}]
[null,null,null,null,null,{"$f":"IF(E73=4,TRUE,FALSE)","v":false}]
[null,"Azami düzeyde dirençlilik elde etmek için yapılabilecek eylemler","Sorumlu kuruluş","Zaman cetveli"]

{"sheet":"E10","index":12,"n_rows":22,"n_cols":6,"rows_kept":22,"cut":false,"hidden":false,"merged":[[17,2,20,3],[6,2,9,3],[3,2,3,3],[4,2,4,3],[5,2,5,3],[14,2,14,3],[15,2,15,3],[16,2,16,3]]}
[]
[]
[null,"P10.1 - Olay sonrası toparlanma planlaması - olay öncesinde"]
[null,"Soru","Açıklama"]
[]
[null,"Yanıt","Doğrulama yollarını belirtin (açıklama ve kanıt)"]
[null,null,null,null,null,{"$f":"IF(E7=1,TRUE,FALSE)","v":false}]
[null,null,null,null,null,{"$f":"IF(E7=2,TRUE,FALSE)","v":false}]
[null,null,null,null,null,{"$f":"IF(E7=3,TRUE,FALSE)","v":false}]
[null,null,null,null,null,{"$f":"IF(E7=4,TRUE,FALSE)","v":false}]
[null,"Azami düzeyde dirençlilik elde etmek için yapılabilecek eylemler","Sorumlu kuruluş","Zaman cetveli"]
[]
[]
[null,"P10.2 - Alınan dersler / ders alma döngüleri"]
[null,"Soru","Açıklama"]
[]
[null,"Yanıt","Doğrulama yollarını belirtin (açıklama ve kanıt)"]
[null,null,null,null,null,{"$f":"IF(E18=1,TRUE,FALSE)","v":false}]
[null,null,null,null,null,{"$f":"IF(E18=2,TRUE,FALSE)","v":false}]
[null,null,null,null,null,{"$f":"IF(E18=3,TRUE,FALSE)","v":false}]
[null,null,null,null,null,{"$f":"IF(E18=4,TRUE,FALSE)","v":false}]
[null,"Azami düzeyde dirençlilik elde etmek için yapılabilecek eylemler","Sorumlu kuruluş","Zaman cetveli"]

{"sheet":"About","index":13,"n_rows":0,"n_cols":0,"rows_kept":0,"cut":false,"hidden":false,"merged":[]}